bitfinex-derivatives/quotes_BNBF0:USTF0_20250715
["timestamp","ask_amount","ask_price","bid_price","bid_amount"]
[1752589209344,1.51231752,686.08,685.1,0.97571974]
[1752589209543,0.98024839,686.13,685.1,0.97571974]
[1752589209544,1.51231752,686.07,685.1,0.97571974]
[1752589209743,1.51231752,686.06,685.1,0.97571974]
[1752589209946,1.51231752,686.05,685.1,0.97571974]
[1752589210146,1.51231752,686.04,685.1,0.97571974]
[1752589210347,1.51231752,686.03,685.1,0.97571974]
[1752589210547,1.51231752,686.02,685.1,0.97571974]
[1752589210744,1.51231752,686.01,685.1,0.97571974]
[1752589211049,1.08795055,686.0,685.1,0.97571974]
[1752589211348,1.51212325,685.99,685.14,0.97571974]
[1752589211548,1.51212325,685.98,685.14,0.97571974]
[1752589211747,0.4241727,685.97,685.14,0.97571974]
[1752589211946,1.51147764,686.02,685.14,0.97571974]
[1752589212150,1.51147764,686.01,685.15,0.97571974]
[1752589212447,1.5113056,686.0,685.14,0.97571974]
[1752589212647,1.5113056,685.99,685.14,0.97571974]
[1752589212947,1.5113056,685.98,685.13,0.97571974]
[1752589213150,1.5113056,685.97,685.1,0.97571974]
[1752589213347,1.08713799,685.96,685.09,0.97571974]
[1752589213559,1.08713799,685.95,685.08,0.97571974]
[1752589213759,1.08713799,685.94,685.08,0.97571974]
[1752589213950,1.08713799,685.93,685.08,0.97571974]
[1752589214151,1.08713799,685.92,685.08,0.97571974]
[1752589214347,1.08713799,685.91,685.07,0.97571974]
[1752589214551,1.08713799,685.9,685.07,0.97571974]
[1752589214850,1.08713799,685.89,685.08,0.97571974]
[1752589215049,1.08713799,685.88,685.08,0.97571974]
[1752589215252,1.08713799,685.87,685.08,0.97571974]
[1752589215448,1.08713799,685.86,685.07,0.97571974]
[1752589215652,1.08713799,685.85,685.07,0.97571974]
[1752589215953,1.08713799,685.84,685.07,0.97571974]
[1752589216152,1.08713799,685.83,685.07,0.97571974]
[1752589216349,1.08713799,685.82,685.08,0.97571974]
[1752589216550,1.08713799,685.81,685.08,0.97571974]
[1752589216752,1.08713799,685.8,685.08,0.97571974]
[1752589216948,1.08713799,685.79,685.08,0.97571974]
[1752589217149,1.23404439,685.98,685.08,0.97571974]
[1752589217350,1.23404439,685.98,684.34,3.2264593]
[1752589217351,1.51107458,685.97,685.07,0.97571974]
[1752589217551,1.51107458,685.96,685.07,0.97571974]
[1752589217756,1.51107458,685.95,685.07,0.97571974]
[1752589217961,1.51107458,685.94,685.07,0.97571974]
[1752589218261,1.51107458,685.93,685.07,0.97571974]
[1752589218452,1.51107458,685.92,685.07,0.97571974]
[1752589218652,1.51107458,685.91,685.07,0.97571974]
[1752589218864,1.51111221,685.9,685.07,0.97571974]
[1752589219156,1.51111221,685.89,685.06,0.97571974]
[1752589219356,1.51111221,685.88,685.06,0.97571974]
[1752589219555,1.51111221,685.87,685.0,0.97571974]
[1752589219752,1.08697961,685.86,685.0,0.97571974]
[1752589220059,1.08697961,685.85,685.0,0.97571974]
[1752589220353,1.08697961,685.84,685.0,0.97571974]
[1752589220555,1.08697961,685.83,685.01,0.97571974]
[1752589220757,1.08697961,685.82,685.0,0.97571974]
[1752589221057,1.08744976,685.81,685.0,0.97571974]
[1752589221356,1.08744976,685.8,685.01,0.97571974]
[1752589221556,1.08744976,685.79,685.02,0.97571974]
[1752589221757,1.08744976,685.78,684.99,0.97571974]
[1752589221952,1.08744976,685.77,684.98,0.97571974]
[1752589222154,1.08744976,685.76,684.98,0.97571974]
[1752589222354,1.08744976,685.75,684.98,0.97571974]
[1752589222654,1.08744976,685.74,684.93,0.97571974]
[1752589222854,1.08744976,685.73,684.93,0.97571974]
[1752589223052,1.08744976,685.72,684.92,0.97571974]
[1752589223355,1.08744976,685.71,684.9,0.97571974]
[1752589223556,1.08744976,685.7,684.9,0.97571974]
[1752589223753,1.08744976,685.69,684.89,0.97571974]
[1752589224057,1.0880056,685.68,684.88,0.97571974]
[1752589224354,0.98024839,685.96,684.48,1.94212853]
[1752589224355,0.98024839,685.96,684.89,0.97571974]
[1752589224557,1.08818135,685.95,684.89,0.97571974]
[1752589224757,1.51276746,685.94,684.89,0.97571974]
[1752589224956,1.51276746,685.93,684.89,0.97571974]
[1752589225257,1.51276746,685.92,684.87,0.97571974]
[1752589225453,1.51276746,685.91,684.88,0.97571974]
[1752589225756,1.51276746,685.9,684.88,0.97571974]
[1752589225953,1.51276746,685.89,684.88,0.97571974]
[1752589226157,1.51276746,685.88,684.9,0.97571974]
[1752589226353,1.51276746,685.87,684.91,0.97571974]
[1752589226653,1.51276746,685.86,684.91,0.97571974]
[1752589226857,1.51315403,685.85,684.91,0.97571974]
[1752589227054,1.51315403,685.84,684.91,0.97571974]
[1752589227257,1.51315403,685.83,684.91,0.97571974]
[1752589227454,1.51315403,685.82,684.91,0.97571974]
[1752589227657,1.51315403,685.81,684.91,0.97571974]
[1752589227855,1.51315403,685.8,684.91,0.97571974]
[1752589228058,1.51315403,685.79,684.91,0.97571974]
[1752589228358,1.51315403,685.78,684.91,0.97571974]
[1752589228658,1.51315403,685.77,684.92,0.97571974]
[1752589228855,1.51315403,685.76,684.91,0.97571974]
[1752589229054,1.08856792,685.75,684.91,0.97571974]
[1752589229258,1.08856792,685.74,684.92,0.97571974]
[1752589229459,1.08856792,685.73,684.92,0.97571974]
[1752589229655,1.08856792,685.72,684.92,0.97571974]
[1752589229958,1.51433105,685.71,684.92,0.97571974]
[1752589230159,1.51441447,685.7,684.92,0.97571974]
[1752589230360,1.08930054,685.69,684.94,0.97571974]
[1752589230663,1.51441699,685.68,684.98,0.97571974]
[1752589230859,1.51441699,685.67,684.95,0.97571974]
[1752589231060,1.08930054,685.66,684.95,0.97571974]
[1752589231259,1.08930054,685.65,684.95,0.97571974]
[1752589231556,1.08930054,685.64,684.96,0.97571974]
[1752589231757,1.08930054,685.63,684.95,0.97571974]
[1752589232057,1.08930054,685.62,684.95,0.97571974]
[1752589232261,1.08930054,685.61,684.95,0.97571974]
[1752589232461,1.08930054,685.6,684.95,0.97571974]
[1752589232663,1.08930054,685.59,684.95,0.97571974]
[1752589232863,1.08930054,685.58,684.95,0.97571974]
[1752589233064,0.98024839,685.79,684.95,0.97571974]
[1752589233263,1.09023463,685.78,684.95,0.97571974]
[1752589233463,1.51563095,685.77,684.96,0.97571974]
[1752589233763,1.51563095,685.76,684.95,0.97571974]
[1752589234064,1.51563095,685.75,684.95,0.97571974]
[1752589234259,1.09023463,685.74,684.95,0.97571974]
[1752589234460,1.51592478,685.73,684.96,0.97571974]
[1752589234661,1.51592478,685.72,684.96,0.97571974]
[1752589234858,1.51592478,685.71,684.95,0.97571974]
[1752589235067,1.51592478,685.7,684.95,0.97571974]
[1752589235266,1.51592478,685.69,684.97,0.97571974]
[1752589235466,1.51592478,685.68,684.98,0.97571974]
[1752589235666,1.51592478,685.67,684.98,0.97571974]
[1752589235869,1.09044639,685.66,684.98,0.97571974]
[1752589236065,1.09044639,685.65,684.98,0.97571974]
[1752589236266,1.09044639,685.64,684.98,0.97571974]
[1752589236469,1.09044639,685.63,684.99,0.97571974]
[1752589236670,1.09044639,685.62,684.99,0.97571974]
[1752589236868,0.253796,685.98,683.62,4.51704303]
[1752589236869,1.09044639,685.61,684.98,0.97571974]
[1752589237072,1.09044639,685.6,684.98,0.97571974]
[1752589237272,0.98024839,685.84,684.98,0.97571974]
[1752589237468,1.09035368,685.83,684.98,0.97571974]
[1752589237671,1.5157946,685.82,684.98,0.97571974]
[1752589237973,1.5157946,685.81,684.98,0.97571974]
[1752589238267,1.5157946,685.8,684.99,0.97571974]
[1752589238472,1.5157946,685.79,684.99,0.97571974]
[1752589238674,1.09035368,685.79,685.0,0.97571974]
[1752589238870,1.51573303,685.78,685.0,0.97571974]
[1752589239174,1.51573303,685.77,685.0,0.97571974]
[1752589239372,1.51573303,685.76,685.01,0.97571974]
[1752589239672,1.51573303,685.75,685.01,0.97571974]
[1752589239871,1.51573303,685.74,685.01,0.97571974]
[1752589240072,1.51573303,685.73,685.01,0.97571974]
[1752589240375,1.51573303,685.72,685.02,0.97571974]
[1752589240574,1.51573303,685.71,685.02,0.97571974]
[1752589240773,1.51573303,685.7,685.02,0.97571974]
[1752589240973,1.51573303,685.69,685.02,0.97571974]
[1752589241171,1.090309,685.68,685.02,0.97571974]
[1752589241378,1.090309,685.67,685.01,0.97571974]
[1752589241673,0.98024839,685.84,685.0,0.97571974]
[1752589241876,0.98024839,685.84,684.81,1.29500472]
[1752589241877,0.98024839,685.85,685.01,0.97571974]
[1752589242077,0.98024839,685.84,685.01,0.97571974]
[1752589242576,0.98024839,685.91,685.07,0.97571974]
[1752589242774,0.98024839,685.91,685.08,0.97571974]
[1752589243275,1.51537521,685.91,685.1,0.97571974]
[1752589243472,1.51537521,685.9,685.1,0.97571974]
[1752589243676,1.51537521,685.89,685.1,0.97571974]
[1752589243876,1.51537521,685.88,685.1,0.97571974]
[1752589244076,1.51537521,685.87,685.1,0.97571974]
[1752589244276,1.51537521,685.86,685.1,0.97571974]
[1752589244475,1.51537521,685.85,685.1,0.97571974]
[1752589244679,1.09002753,685.84,685.11,0.97571974]
[1752589244877,1.09002753,685.83,685.11,0.97571974]
[1752589245078,1.09002753,685.82,685.11,0.97571974]
[1752589245276,1.09002753,685.81,685.11,0.97571974]
[1752589245473,1.09002753,685.8,685.11,0.97571974]
[1752589245677,1.09002753,685.79,685.15,0.97571974]
[1752589245876,1.09002753,685.78,685.15,0.97571974]
[1752589246075,0.98024839,685.95,685.15,0.97571974]
[1752589246678,2.49541806,685.95,685.15,0.97571974]
[1752589246978,1.51516967,685.94,685.15,0.97571974]
[1752589247182,0.42531907,685.93,685.15,0.97571974]
[1752589247478,0.98024839,685.92,685.17,0.97571974]
[1752589247877,2.07012646,685.92,685.17,0.97571974]
[1752589248178,1.51520786,685.91,685.17,0.97571974]
[1752589248379,0.42532979,685.9,685.17,0.97571974]
[1752589248579,1.51518539,685.91,685.17,0.97571974]
[1752589248778,0.42532979,685.9,685.17,0.97571974]
[1752589249282,0.42532979,685.9,685.18,0.97571974]
[1752589249481,1.51518539,685.9,685.17,0.97571974]
[1752589249687,1.51518539,685.89,685.16,0.97571974]
[1752589249884,1.51518539,685.88,685.16,0.97571974]
[1752589250081,1.51518539,685.87,685.16,0.97571974]
[1752589250285,1.51518539,685.86,685.16,0.97571974]
[1752589250482,1.0898556,685.85,685.17,0.97571974]
[1752589250685,1.0898556,685.84,685.16,0.97571974]
[1752589250883,0.98024839,685.94,685.16,0.97571974]
[1752589251182,1.51505478,685.97,685.24,0.97571974]
[1752589251486,1.51505478,685.96,685.24,0.97571974]
[1752589251686,1.51505478,685.95,685.24,0.97571974]
[1752589251886,1.51505478,685.94,685.24,0.97571974]
[1752589252088,1.08977621,685.93,685.24,0.97571974]
[1752589252288,1.08977621,685.92,685.24,0.97571974]
[1752589252585,1.08977621,685.91,685.24,0.97571974]
[1752589252789,1.08977621,685.9,685.24,0.97571974]
[1752589252990,1.08977621,685.89,685.24,0.97571974]
[1752589253289,1.08977621,685.88,685.24,0.97571974]
[1752589253485,1.08977621,685.87,685.24,0.97571974]
[1752589253689,1.08977621,685.86,685.24,0.97571974]
[1752589253892,0.253796,685.98,685.06,1.29500472]
[1752589254085,0.253796,685.98,685.24,0.97508243]
[1752589255691,0.253796,685.98,685.22,0.97508243]
[1752589259491,0.253796,685.98,684.86,1.94212853]
[1752589259492,0.253796,685.98,685.25,0.97508243]
[1752589260294,0.253796,685.98,685.24,0.97508243]
[1752589260488,0.253796,685.98,685.25,0.97508243]
[1752589261990,0.67890645,685.98,685.25,0.97508243]
[1752589262590,1.08942033,685.97,685.25,0.97508243]
[1752589262793,1.51453078,685.96,685.25,0.97508243]
[1752589263090,1.51453078,685.95,685.23,0.97508243]
[1752589263291,1.51453078,685.94,685.23,0.97508243]
[1752589263495,1.51453078,685.93,685.22,0.97508243]
[1752589263692,1.51453078,685.92,685.23,0.97508243]
[1752589263894,1.51453078,685.91,685.23,0.97508243]
[1752589264095,1.51453078,685.9,685.23,0.97508243]
[1752589264295,1.51453078,685.89,685.23,0.97508243]
[1752589264494,1.51453078,685.88,685.11,0.97508243]
[1752589264691,1.51458502,685.87,685.06,0.97508243]
[1752589264994,0.98075793,685.97,685.06,0.97508243]
[1752589264995,1.51458502,685.86,685.06,0.97508243]
[1752589265195,0.253796,685.98,683.92,4.51704303]
[1752589265196,1.08942639,685.85,685.07,0.97508243]
[1752589265495,1.08942639,685.84,685.07,0.97508243]
[1752589265696,1.08942639,685.83,685.07,0.97508243]
[1752589265893,1.08944848,685.82,685.07,0.97508243]
[1752589266093,1.08944848,685.81,685.07,0.97508243]
[1752589266297,0.98075793,685.97,685.07,0.97508243]
[1752589266494,2.49545117,685.97,685.07,0.97508243]
[1752589266697,1.51469324,685.96,685.07,0.97508243]
[1752589266894,0.42518564,685.95,685.07,0.97508243]
[1752589267096,0.42518564,685.95,685.1,0.97508243]
[1752589267496,0.253796,685.98,685.1,0.97508243]
[1752589267896,0.67898164,685.98,685.1,0.97508243]
[1752589268100,0.253796,685.98,685.1,0.97508243]
[1752589268400,0.253796,685.98,685.11,0.97508243]
[1752589268996,0.253796,685.98,685.1,0.97508243]
[1752589269499,0.42518564,685.99,685.07,0.97508243]
[1752589269893,0.42518564,686.05,685.07,0.97508243]
[1752589270095,0.98075793,686.04,685.09,0.97508243]
[1752589270295,0.98075793,686.04,685.1,0.97508243]
[1752589270595,2.07028322,686.04,685.1,0.97508243]
[1752589270797,1.08952529,686.03,685.1,0.97508243]
[1752589271099,1.08952529,686.02,685.1,0.97508243]
[1752589271296,1.08952529,686.01,685.11,0.97508243]
[1752589271500,1.08952529,686.0,685.11,0.97508243]
[1752589271700,1.08952529,685.99,685.11,0.97508243]
[1752589271895,1.08952529,685.98,685.11,0.97508243]
[1752589272095,0.25378119,686.08,683.69,3.2264593]
[1752589272096,2.07028322,685.97,685.15,0.97508243]
[1752589272297,1.08952529,685.96,685.15,0.97508243]
[1752589272499,1.08952529,685.95,685.15,0.97508243]
[1752589272696,1.08952529,685.94,685.15,0.97508243]
[1752589272899,1.08952529,685.93,685.15,0.97508243]
[1752589273200,1.08952529,685.92,685.3,0.97508243]
[1752589273500,0.25378119,686.08,685.3,0.97508243]
[1752589273997,0.98075793,686.07,685.25,0.97508243]
[1752589274200,2.49558044,686.07,685.25,0.97508243]
[1752589274400,1.51482251,686.06,685.24,0.97508243]
[1752589274601,1.51482251,686.05,685.23,0.97508243]
[1752589274901,1.51482251,686.04,685.23,0.97508243]
[1752589275099,0.25378119,686.08,683.95,3.2264593]
[1752589275100,1.51482251,686.03,685.22,0.97508243]
[1752589275401,1.51482251,686.02,685.22,0.97508243]
[1752589275602,1.51480229,686.01,685.22,0.97508243]
[1752589275800,1.08964743,686.0,685.21,0.97508243]
[1752589276102,1.08964743,685.99,685.21,0.97508243]
[1752589276303,1.08964743,685.98,685.2,0.97508243]
[1752589276501,1.08964743,685.97,685.2,0.97508243]
[1752589276700,1.08964743,685.96,685.21,0.97508243]
[1752589276901,1.08964743,685.95,685.21,0.97508243]
[1752589277198,1.08964743,685.94,685.21,0.97508243]
[1752589277400,1.08964743,685.93,685.21,0.97508243]
[1752589277600,1.08964743,685.92,685.21,0.97508243]
[1752589277806,0.25378119,686.08,685.21,0.97508243]
[1752589278502,0.25378119,686.08,685.2,0.97508243]
[1752589279206,0.25378119,686.08,685.21,0.97508243]
[1752589280703,0.25378119,686.08,685.2,0.97508243]
[1752589281103,0.25378119,686.08,684.97,1.29500472]
[1752589281104,0.98075793,685.97,685.1,0.97508243]
[1752589281300,0.98075793,685.96,685.09,0.97508243]
[1752589282002,0.98075793,685.94,685.08,0.97508243]
[1752589282203,0.98075793,685.9,685.1,0.97508243]
[1752589282406,0.98075793,685.85,685.06,0.97508243]
[1752589282606,0.25378119,686.08,685.06,0.97508243]
[1752589282607,0.98075793,685.84,685.06,0.97508243]
[1752589282905,2.8230223,686.01,684.04,3.2264593]
[1752589282906,0.98075793,685.82,685.08,0.97508243]
[1752589283102,0.98075793,685.79,685.1,0.97508243]
[1752589283302,0.98075793,685.78,685.1,0.97508243]
[1752589283707,0.98075793,685.75,685.07,0.97508243]
[1752589284207,0.98075793,685.76,685.07,0.97508243]
[1752589284907,0.98075793,685.75,685.07,0.97508243]
[1752589285403,0.98075793,685.75,685.06,0.97508243]
[1752589286307,0.98075793,685.76,685.06,0.97508243]
[1752589286706,2.49531136,685.76,685.06,0.97508243]
[1752589286909,1.51455343,685.75,685.06,0.97508243]
[1752589287107,0.42499929,685.74,685.06,0.97508243]
[1752589287911,1.51455343,685.74,685.06,0.97508243]
[1752589288110,1.51455343,685.73,685.06,0.97508243]
[1752589288312,0.98075793,685.76,685.06,0.97508243]
[1752589288313,1.51455343,685.72,685.06,0.97508243]
[1752589288607,3.26068367,686.6,685.07,0.97508243]
[1752589288608,1.51472815,685.71,685.07,0.97508243]
[1752589288809,1.51472815,685.7,685.07,0.97508243]
[1752589289008,1.08955414,685.69,685.07,0.97508243]
[1752589289213,1.08955414,685.68,685.07,0.97508243]
[1752589289407,1.08955414,685.67,685.07,0.97508243]
[1752589289609,1.08955414,685.66,685.07,0.97508243]
[1752589289813,1.08955414,685.65,685.07,0.97508243]
[1752589290011,1.08955414,685.64,685.07,0.97508243]
[1752589290311,1.08955414,685.63,685.07,0.97508243]
[1752589290513,1.08955414,685.62,685.07,0.97508243]
[1752589290710,1.08955414,685.61,685.07,0.97508243]
[1752589290911,0.98075793,685.74,685.08,0.97508243]
[1752589291516,0.98075793,685.73,685.08,0.97508243]
[1752589292212,0.98075793,685.73,685.09,0.97508243]
[1752589293115,0.98075793,685.73,685.08,0.97508243]
[1752589293715,0.98075793,685.72,685.08,0.97508243]
[1752589294413,2.49566741,685.72,685.08,0.97508243]
[1752589294611,1.51490948,685.71,685.08,0.97508243]
[1752589294811,0.42523767,685.7,685.08,0.97508243]
[1752589295013,0.42523767,685.7,685.07,0.97508243]
[1752589295211,1.51490948,685.71,685.07,0.97508243]
[1752589295416,1.51490948,685.7,685.06,0.97508243]
[1752589295616,1.08967181,685.69,685.06,0.97508243]
[1752589295916,1.08967181,685.68,685.06,0.97508243]
[1752589296214,1.08967181,685.67,685.06,0.97508243]
[1752589296413,1.08967181,685.66,685.06,0.97508243]
[1752589296611,1.08967181,685.65,685.06,0.97508243]
[1752589296813,1.08967181,685.64,685.06,0.97508243]
[1752589297013,1.08967181,685.63,685.06,0.97508243]
[1752589297316,0.98075793,685.76,685.06,0.97508243]
[1752589299216,0.98075793,685.76,685.05,0.97508243]
[1752589299418,0.98075793,685.75,685.06,0.97508243]
[1752589299718,0.98075793,685.73,685.04,0.97508243]
[1752589299914,0.98075793,685.68,685.0,0.97508243]
[1752589300118,0.98075793,685.68,684.99,0.97508243]
[1752589300320,0.98075793,685.69,684.99,0.97508243]
[1752589300819,0.98075793,685.68,684.99,0.97508243]
[1752589301019,1.09029181,685.67,684.98,0.97508243]
[1752589301319,0.42536076,685.76,684.92,0.97508243]
[1752589301320,2.07104974,685.66,684.92,0.97508243]
[1752589301521,2.07104974,685.65,684.92,0.97508243]
[1752589301722,2.49648079,685.64,684.89,0.97508243]
[1752589301920,1.51572286,685.63,684.89,0.97508243]
[1752589302117,0.42543105,685.62,684.88,0.97508243]
[1752589303021,0.42543105,685.62,684.86,0.97508243]
[1752589303224,0.42543105,685.62,684.85,0.97508243]
[1752589303424,1.51572286,685.66,684.85,0.97508243]
[1752589303621,1.51572286,685.65,684.85,0.97508243]
[1752589303826,1.51572286,685.64,684.85,0.97508243]
[1752589304128,1.51572286,685.63,684.84,0.97508243]
[1752589304324,1.51572286,685.62,684.83,0.97508243]
[1752589304529,1.09029181,685.61,684.83,0.97508243]
[1752589304729,2.21661079,686.08,684.8,0.97508243]
[1752589304730,1.09029181,685.6,684.8,0.97508243]
[1752589304926,1.09029181,685.59,684.8,0.97508243]
[1752589305129,1.09029181,685.58,684.8,0.97508243]
[1752589305326,1.09029181,685.57,684.79,0.97508243]
[1752589305628,1.09029181,685.56,684.79,0.97508243]
[1752589305827,1.09029181,685.55,684.79,0.97508243]
[1752589306029,1.09029181,685.54,684.79,0.97508243]
[1752589306227,0.98075793,685.76,684.78,0.97508243]
[1752589307126,0.98075793,685.76,684.79,0.97508243]
[1752589307326,0.98075793,685.77,684.78,0.97508243]
[1752589308333,0.98075793,685.77,684.77,0.97508243]
[1752589309428,0.98075793,685.78,684.77,0.97508243]
[1752589309731,0.98075793,685.79,684.78,0.97508243]
[1752589309929,1.08939041,685.78,684.78,0.97508243]
[1752589310133,0.98075793,685.79,684.78,0.97508243]
[1752589310331,2.06968787,685.78,684.78,0.97508243]
[1752589310530,1.51520942,685.77,684.78,0.97508243]
[1752589310731,1.51525683,685.76,684.79,0.97508243]
[1752589310933,1.51525683,685.75,684.79,0.97508243]
[1752589311230,1.51525683,685.74,684.77,0.97508243]
[1752589311534,0.98075793,685.64,684.65,0.97508243]
[1752589311733,1.08897735,685.63,684.65,0.97508243]
[1752589311936,0.42627948,685.62,684.65,0.97508243]
[1752589312236,0.42627948,685.62,684.44,1.29500472]
[1752589312237,0.42627948,685.62,684.64,0.97508243]
[1752589312437,1.51525683,685.62,684.64,0.97508243]
[1752589312636,1.51525683,685.61,684.64,0.97508243]
[1752589312836,1.51525683,685.6,684.64,0.97508243]
[1752589313037,1.51525683,685.59,684.64,0.97508243]
[1752589313233,1.51525683,685.58,684.63,0.97508243]
[1752589313537,1.51525683,685.57,684.63,0.97508243]
[1752589313737,1.51525683,685.56,684.63,0.97508243]
[1752589313934,1.51525683,685.55,684.63,0.97508243]
[1752589314238,1.51525683,685.54,684.62,0.97508243]
[1752589314533,1.51525683,685.53,684.62,0.97508243]
[1752589314739,1.08897735,685.52,684.62,0.97508243]
[1752589314937,1.08897735,685.51,684.62,0.97508243]
[1752589315135,0.98075793,685.65,684.6,0.97508243]
[1752589315136,1.08897735,685.5,684.6,0.97508243]
[1752589315334,1.08897735,685.49,684.6,0.97508243]
[1752589315638,1.08897735,685.48,684.6,0.97508243]
[1752589315839,1.08897735,685.47,684.6,0.97508243]
[1752589316135,1.08897735,685.46,684.6,0.97508243]
[1752589316337,1.08897735,685.45,684.59,0.97508243]
[1752589316535,1.08897735,685.44,684.59,0.97508243]
[1752589316834,1.08897735,685.43,684.59,0.97508243]
[1752589317039,1.08897735,685.42,684.61,0.97508243]
[1752589317240,1.08897735,685.41,684.6,0.97508243]
[1752589317438,1.08897735,685.4,684.6,0.97508243]
[1752589317635,1.08897735,685.39,684.6,0.97508243]
[1752589317836,0.98075793,685.61,684.6,0.97508243]
[1752589318036,1.08748995,685.6,684.61,0.97508243]
[1752589318240,1.51322642,685.59,684.6,0.97508243]
[1752589318440,1.51322642,685.58,684.6,0.97508243]
[1752589318636,1.51322642,685.57,684.6,0.97508243]
[1752589318937,1.51322642,685.56,684.6,0.97508243]
[1752589319238,1.51305289,685.55,684.59,0.97508243]
[1752589319440,1.51305289,685.54,684.59,0.97508243]
[1752589319641,0.42568765,685.53,684.61,0.97508243]
[1752589319941,1.08736524,685.58,684.61,0.97508243]
[1752589320141,0.98075793,685.54,684.64,0.97508243]
[1752589320436,1.08736524,685.53,684.64,0.97508243]
[1752589320641,1.51305289,685.52,684.64,0.97508243]
[1752589320842,1.51305289,685.51,684.64,0.97508243]
[1752589321043,1.51305289,685.5,684.64,0.97508243]
[1752589321245,1.51296694,685.49,684.63,0.97508243]
[1752589321443,1.51296694,685.48,684.63,0.97508243]
[1752589321643,1.51296694,685.47,684.63,0.97508243]
[1752589321840,1.51296694,685.46,684.63,0.97508243]
[1752589322140,1.51296694,685.45,684.63,0.97508243]
[1752589322339,1.51296694,685.44,684.49,1.29500472]
[1752589322643,1.51296694,685.43,684.63,0.97437939]
[1752589322843,1.51296694,685.42,684.63,0.97437939]
[1752589323043,3.26068367,686.41,684.62,0.97437939]
[1752589323044,1.51296694,685.41,684.62,0.97437939]
[1752589323240,3.26068367,686.41,684.64,0.97437939]
[1752589323241,1.51296694,685.4,684.64,0.97437939]
[1752589323441,1.9628296,685.81,683.48,4.51704303]
[1752589323442,1.51296694,685.39,684.61,0.97437939]
[1752589323643,1.51296694,685.38,684.61,0.97437939]
[1752589323842,1.51296694,685.37,684.61,0.97437939]
[1752589324042,0.97812495,685.58,684.61,0.97437939]
[1752589324241,1.08687937,685.57,684.61,0.97437939]
[1752589324438,1.51239807,685.56,684.59,0.97437939]
[1752589324644,0.97812495,685.52,684.55,0.97437939]
[1752589324944,1.08687937,685.51,684.55,0.97437939]
[1752589325243,1.9628296,685.84,683.64,0.2537923]
[1752589325244,1.51239807,685.5,684.54,0.97437939]
[1752589325443,1.51239807,685.49,684.52,0.97437939]
[1752589325644,1.51239807,685.48,684.52,0.97437939]
[1752589325844,1.51239807,685.47,684.52,0.97437939]
[1752589326140,1.51239807,685.46,684.52,0.97437939]
[1752589326338,1.51239807,685.45,684.52,0.97437939]
[1752589326545,1.51239807,685.44,684.45,0.97437939]
[1752589326742,1.51239807,685.43,684.45,0.97437939]
[1752589326948,1.51239807,685.42,684.45,0.97437939]
[1752589327141,1.08687937,685.42,684.45,0.97437939]
[1752589327444,1.51116395,685.41,684.44,0.97437939]
[1752589327641,1.51116395,685.4,684.44,0.97437939]
[1752589327944,1.51116395,685.39,684.44,0.97437939]
[1752589328140,3.26068367,686.41,683.64,0.2537923]
[1752589328141,1.08599235,685.38,684.41,0.97437939]
[1752589328343,1.08599235,685.37,684.41,0.97437939]
[1752589328542,1.08599235,685.36,684.42,0.97437939]
[1752589328744,1.08599235,685.35,684.42,0.97437939]
[1752589329044,1.08599235,685.34,684.42,0.97437939]
[1752589329345,1.08599235,685.33,684.41,0.97437939]
[1752589329539,1.08599235,685.32,684.41,0.97437939]
[1752589329839,1.08599235,685.31,684.41,0.97437939]
[1752589330039,1.08599235,685.3,684.41,0.97437939]
[1752589330244,1.08599235,685.29,684.41,0.97437939]
[1752589330545,1.08599235,685.28,684.41,0.97437939]
[1752589330739,1.08599235,685.27,684.41,0.97437939]
[1752589330939,1.08599235,685.26,684.41,0.97437939]
[1752589331141,1.08599235,685.25,684.41,0.97437939]
[1752589331440,1.08599235,685.24,684.4,0.97437939]
[1752589331657,1.08599235,685.23,684.4,0.97437939]
[1752589331843,0.97812495,685.48,684.4,0.97437939]
[1752589332041,1.0852136,685.47,684.4,0.97437939]
[1752589332241,1.51008028,685.46,684.41,0.97437939]
[1752589332540,1.51008028,685.45,684.4,0.97437939]
[1752589332741,1.51008028,685.44,684.4,0.97437939]
[1752589332945,1.51008028,685.43,684.4,0.97437939]
[1752589333142,1.50765959,685.42,684.4,0.97437939]
[1752589333344,0.42243964,685.41,684.41,0.97437939]
[1752589333543,1.50755841,685.47,684.41,0.97437939]
[1752589333743,1.50755841,685.46,684.41,0.97437939]
[1752589334045,1.50755841,685.45,684.41,0.97437939]
[1752589334246,1.50755841,685.44,684.41,0.97437939]
[1752589334444,1.50755841,685.43,684.41,0.97437939]
[1752589334643,1.50755841,685.42,684.41,0.97437939]
[1752589334947,1.50755841,685.41,684.41,0.97437939]
[1752589335141,1.50755841,685.4,684.41,0.97437939]
[1752589335343,1.50755841,685.39,684.42,0.97437939]
[1752589335544,1.08511877,685.38,684.41,0.97437939]
[1752589335848,1.08511877,685.37,684.42,0.97437939]
[1752589336047,1.0845425,685.36,684.42,0.97437939]
[1752589336343,1.0845425,685.35,684.42,0.97437939]
[1752589336547,1.0845425,685.34,684.42,0.97437939]
[1752589336748,1.08466013,685.33,684.42,0.97437939]
[1752589337044,1.08466013,685.32,684.49,0.97437939]
[1752589337247,1.08466013,685.31,684.52,0.97437939]
[1752589337549,1.08466013,685.3,684.51,0.97437939]
[1752589337749,1.08466013,685.29,684.51,0.97437939]